bitfinex-derivatives/quotes_BTCF0:USTF0_20230401
["timestamp","ask_amount","ask_price","bid_price","bid_amount"]
[1680327907872,0.3721,28569.0,28568.0,0.00364722]
[1680327908277,0.3721,28569.0,28568.0,0.006516]
[1680327911581,0.0714,28569.0,28568.0,0.006516]
[1680327912380,0.3721,28569.0,28568.0,0.006516]
[1680327912580,0.0714,28569.0,28568.0,0.006516]
[1680327913286,0.3721,28569.0,28568.0,0.006516]
[1680327913482,0.0714,28569.0,28568.0,0.006516]
[1680327913674,0.3721,28569.0,28568.0,0.006516]
[1680327914076,0.3728,28569.0,28568.0,0.076616]
[1680327914276,0.07198147,28569.0,28568.0,0.076616]
[1680327914477,0.07198147,28569.0,28568.0,0.16862131]
[1680327914678,0.07198147,28569.0,28568.0,0.11862131]
[1680327915078,0.07198147,28569.0,28568.0,0.076616]
[1680327915687,0.07198147,28569.0,28568.0,0.11862131]
[1680327917785,0.07198147,28569.0,28568.0,0.41932131]
[1680327918390,0.07198147,28569.0,28568.0,0.11862131]
[1680327918592,0.07198147,28569.0,28568.0,0.41932131]
[1680327922295,0.07198147,28569.0,28568.0,0.377316]
[1680327922489,0.07198147,28569.0,28568.0,0.006516]
[1680327926096,0.12198147,28569.0,28568.0,0.006516]
[1680327933507,0.42268147,28569.0,28568.0,0.006516]
[1680327933711,0.42268147,28569.0,28568.0,0.00364722]
[1680327934012,0.42268147,28569.0,28568.0,0.0065227]
[1680327937502,0.37268147,28569.0,28568.0,0.0065227]
[1680327940915,0.07198147,28569.0,28568.0,0.0065227]
[1680327942420,0.07198147,28569.0,28568.0,0.0766227]
[1680327953029,0.07198147,28569.0,28568.0,0.11862801]
[1680327953519,0.07198147,28569.0,28568.0,0.0766227]
[1680327954025,0.07198147,28569.0,28568.0,0.11862801]
[1680327957027,0.07138147,28569.0,28568.0,0.11862801]
[1680327964326,0.07138147,28569.0,28568.0,0.11850657]
[1680327977030,0.07198147,28569.0,28568.0,0.04840657]
[1680327977936,0.07198147,28569.0,28568.0,0.04839111]
[1680327978136,0.07198147,28569.0,28568.0,0.05640126]
[1680327978634,0.0701,28572.0,28569.0,0.05]
[1680327978838,0.0701,28572.0,28570.0,0.07288686]
[1680327979038,1e-08,28572.0,28570.0,0.41557449]
[1680327979335,1e-08,28572.0,28571.0,0.09198763]
[1680327979833,0.00200001,28572.0,28571.0,0.09198763]
[1680327980439,0.00200001,28572.0,28571.0,0.05]
[1680327980936,0.00200001,28572.0,28571.0,0.04198763]
[1680327981135,0.00200001,28572.0,28570.0,0.41557449]
[1680327981831,0.00100001,28572.0,28571.0,0.004]
[1680327982232,0.00100001,28572.0,28570.0,0.42157449]
[1680327982632,0.00100001,28572.0,28570.0,0.41557449]
[1680327982940,0.00100001,28572.0,28571.0,0.056]
[1680327983133,0.00100001,28572.0,28571.0,0.006]
[1680327983529,0.00100001,28572.0,28570.0,0.42157449]
[1680327985234,0.00100001,28572.0,28570.0,0.41557449]
[1680327985540,0.00100001,28572.0,28571.0,0.006]
[1680327985738,1e-08,28572.0,28571.0,0.05]
[1680327985937,0.00100001,28572.0,28571.0,0.05]
[1680327986138,0.00100001,28572.0,28570.0,0.47157449]
[1680327986442,0.00100001,28572.0,28571.0,0.05]
[1680327986834,1e-08,28572.0,28571.0,0.05]
[1680327987141,0.00100001,28572.0,28571.0,0.006]
[1680327987737,0.0711,28572.0,28571.0,0.0759]
[1680327990344,0.0711,28572.0,28571.0,0.07878996]
[1680327992440,0.001,28572.0,28571.0,0.12858996]
[1680327993742,0.0695,28575.0,28572.0,0.05]
[1680327993940,0.0695,28575.0,28574.0,0.3007]
[1680327994347,0.0695,28575.0,28574.0,0.3507]
[1680327995048,0.0785,28575.0,28574.0,0.3517]
[1680327995545,0.0695,28575.0,28574.0,0.3507]
[1680327995744,0.0785,28575.0,28574.0,0.3517]
[1680327996645,0.0785,28575.0,28574.0,0.3507]
[1680327996848,0.0715,28575.0,28574.0,0.3577]
[1680327997039,0.002,28575.0,28574.0,0.4272]
[1680327997242,0.002,28575.0,28574.0,0.3772]
[1680327997942,0.052,28575.0,28574.0,0.3772]
[1680327998149,0.002,28575.0,28574.0,0.3772]
[1680327999944,0.002,28575.0,28574.0,0.0765]
[1680328005453,0.002,28575.0,28574.0,0.08012705]
[1680328014259,0.002,28575.0,28574.0,0.08062705]
[1680328017159,0.3727,28575.0,28574.0,0.01062705]
[1680328017458,0.4227,28575.0,28574.0,0.01062705]
[1680328018160,0.3727,28575.0,28574.0,0.01062705]
[1680328019361,0.37249295,28575.0,28574.0,0.01062705]
[1680328019764,0.07179295,28575.0,28574.0,0.01062705]
[1680328021464,0.12179295,28575.0,28574.0,0.01062705]
[1680328024559,0.07179295,28575.0,28574.0,0.01062705]
[1680328025064,0.12179295,28575.0,28574.0,0.01062705]
[1680328027761,0.07179295,28575.0,28574.0,0.01062705]
[1680328029360,0.12179295,28575.0,28574.0,0.01062705]
[1680328030059,0.07179295,28575.0,28574.0,0.01062705]
[1680328033658,0.12179295,28575.0,28574.0,0.01062705]
[1680328038275,0.07179295,28575.0,28574.0,0.01062705]
[1680328050170,0.07179295,28575.0,28574.0,0.05261468]
[1680328057084,0.07179295,28575.0,28574.0,0.12261468]
[1680328066982,0.00179295,28575.0,28574.0,0.12261468]
[1680328067182,0.07179295,28575.0,28574.0,0.12261468]
[1680328068890,0.07179295,28575.0,28574.0,0.08062705]
[1680328069093,0.07179295,28575.0,28574.0,0.12261468]
[1680328070291,0.07179295,28575.0,28574.0,0.08062705]
[1680328071291,0.07179295,28575.0,28574.0,0.12261468]
[1680328071988,0.07179295,28575.0,28574.0,0.12243365]
[1680328077003,0.07179295,28575.0,28574.0,0.01044602]
[1680328077996,0.07179295,28575.0,28574.0,0.05243365]
[1680328090120,0.07179295,28575.0,28574.0,0.10243365]
[1680328094817,0.07179295,28575.0,28574.0,0.40313365]
[1680328096610,0.07179295,28575.0,28574.0,0.10243365]
[1680328096807,0.07179295,28575.0,28574.0,0.40313365]
[1680328097009,0.00179295,28575.0,28574.0,0.47313365]
[1680328098023,0.00179295,28575.0,28574.0,0.42313365]
[1680328103216,0.00179295,28575.0,28574.0,0.42312924]
[1680328103416,0.00179295,28575.0,28574.0,0.38114602]
[1680328103613,0.00179295,28575.0,28574.0,0.42312948]
[1680328103813,0.00179295,28575.0,28574.0,0.38114602]
[1680328104013,0.00179295,28575.0,28574.0,0.42312925]
[1680328105627,0.00179295,28575.0,28574.0,0.42312889]
[1680328105830,0.00179295,28575.0,28574.0,0.38114602]
[1680328106016,0.00179295,28575.0,28574.0,0.44411919]
[1680328107928,0.00179295,28575.0,28574.0,0.44351919]
[1680328110227,0.00179295,28575.0,28574.0,0.38054602]
[1680328114436,0.00179295,28575.0,28574.0,0.44351919]
[1680328117043,0.00179295,28575.0,28574.0,0.14281919]
[1680328117236,0.00179295,28575.0,28574.0,0.44351919]
[1680328119343,0.00179295,28575.0,28574.0,0.14281919]
[1680328119741,0.00179295,28575.0,28574.0,0.44351919]
[1680328120546,0.00179295,28575.0,28574.0,0.14281919]
[1680328120845,0.00179295,28575.0,28574.0,0.44351919]
[1680328121448,0.00179295,28575.0,28574.0,0.14281919]
[1680328121640,0.00179295,28575.0,28574.0,0.44351919]
[1680328121839,0.00179295,28575.0,28574.0,0.14281919]
[1680328122041,0.00179295,28575.0,28574.0,0.44351919]
[1680328122347,0.00179295,28575.0,28574.0,0.14281919]
[1680328122848,0.00179295,28575.0,28574.0,0.44351919]
[1680328126145,0.00179295,28575.0,28574.0,0.44338143]
[1680328127051,0.07179295,28575.0,28574.0,0.44398143]
[1680328137148,0.00179295,28575.0,28574.0,0.44398143]
[1680328141360,0.00179295,28575.0,28574.0,0.38100826]
[1680328141860,0.00179295,28575.0,28574.0,0.44397493]
[1680328142461,0.00179295,28575.0,28574.0,0.38100826]
[1680328142653,0.00179295,28575.0,28574.0,0.44397551]
[1680328144663,0.00179295,28575.0,28574.0,0.49397551]
[1680328146466,0.00179295,28575.0,28574.0,0.43100826]
[1680328146661,0.00179295,28575.0,28574.0,0.49397775]
[1680328146862,0.00179295,28575.0,28574.0,0.44397775]
[1680328148165,0.00179295,28575.0,28574.0,0.38100826]
[1680328160483,0.00179295,28575.0,28574.0,0.43100826]
[1680328169085,0.00179295,28575.0,28574.0,0.51503558]
[1680328171487,0.00179295,28575.0,28574.0,0.51492117]
[1680328172279,0.00179295,28575.0,28574.0,0.46492117]
[1680328173192,0.00179295,28575.0,28574.0,0.38089385]
[1680328173693,0.00179295,28575.0,28574.0,0.46492117]
[1680328173880,0.00179295,28575.0,28574.0,0.38089385]
[1680328174488,0.00179295,28575.0,28574.0,0.46492117]
[1680328176206,0.8588,28579.0,28575.0,0.05]
[1680328176495,0.0694,28579.0,28578.0,0.07]
[1680328177091,0.0714,28579.0,28578.0,0.07]
[1680328185397,0.0714,28579.0,28578.0,0.07364709]
[1680328187104,0.072,28579.0,28578.0,0.00364709]
[1680328209712,0.072,28579.0,28578.0,0.34633145]
[1680328212109,0.0694,28579.0,28578.0,0.39633145]
[1680328212305,0.0694,28579.0,28578.0,0.35434709]
[1680328213316,0.0694,28579.0,28578.0,0.30434709]
[1680328213512,0.07,28581.0,28578.0,0.41631468]
[1680328213711,0.05,28580.0,28579.0,0.0694]
[1680328213906,0.05,28580.0,28579.0,0.1194]
[1680328214111,0.05,28580.0,28579.0,0.07305162]
[1680328214812,0.085,28581.0,28579.0,0.07305162]
[1680328215920,0.008,28580.0,28579.0,0.07405162]
[1680328216117,0.058,28580.0,28579.0,0.07405162]
[1680328216518,0.05,28580.0,28579.0,0.07405162]
[1680328216814,0.05,28580.0,28579.0,0.07305162]
[1680328217020,0.058,28580.0,28579.0,0.07405162]
[1680328220723,0.008,28580.0,28579.0,0.07405162]
[1680328222114,0.058,28580.0,28579.0,0.07405162]
[1680328222516,0.128,28580.0,28579.0,0.00465162]
[1680328237029,0.19,28579.0,28576.0,0.04196759]
[1680328237231,0.07,28577.0,28576.0,0.04196759]
[1680328237426,0.12,28577.0,28576.0,0.04196759]
[1680328238429,0.121,28577.0,28576.0,0.04996759]
[1680328239230,0.071,28577.0,28576.0,0.04996759]
[1680328244537,0.071,28577.0,28576.0,0.05317079]
[1680328250735,0.071,28577.0,28576.0,0.0112032]
[1680328251242,0.071,28577.0,28576.0,0.05316629]
[1680328254944,0.121,28577.0,28576.0,0.05316629]
[1680328257241,0.071,28577.0,28576.0,0.05316629]
[1680328257636,0.121,28577.0,28576.0,0.05316629]
[1680328257840,0.071,28577.0,28576.0,0.05316629]
[1680328258348,0.121,28577.0,28576.0,0.05316629]
[1680328259845,0.121,28577.0,28576.0,0.0112032]
[1680328267550,0.071,28577.0,28576.0,0.0112032]
[1680328281555,0.071,28577.0,28576.0,0.01102806]
[1680328293575,0.121,28577.0,28576.0,0.01102806]
[1680328302077,0.4217,28577.0,28576.0,0.01102806]
[1680328307178,0.4917,28577.0,28576.0,0.01102806]
[1680328308577,0.4417,28577.0,28576.0,0.01102806]
[1680328315991,0.05,28576.0,28574.0,0.0419859]
[1680328316285,0.1389,28575.0,28572.0,0.0419859]
[1680328316481,0.4404,28573.0,28572.0,0.0419859]
[1680328317083,0.4404,28573.0,28572.0,0.0429859]
[1680328318289,0.4404,28573.0,28572.0,0.001]
[1680328318688,0.4434,28573.0,28572.0,0.001]
[1680328323683,0.4434,28573.0,28572.0,0.00253723]
[1680328323882,0.1427,28573.0,28572.0,0.00253723]
[1680328324190,0.4434,28573.0,28572.0,0.00253723]
[1680328324395,0.1427,28573.0,28572.0,0.00253723]
[1680328324894,0.4434,28573.0,28572.0,0.00253723]
[1680328325295,0.1427,28573.0,28572.0,0.00253723]
[1680328325498,0.4434,28573.0,28572.0,0.00253723]
[1680328325797,0.1427,28573.0,28572.0,0.00253723]
[1680328325999,0.4434,28573.0,28572.0,0.00253723]
[1680328326297,0.1427,28573.0,28572.0,0.00253723]
[1680328326702,0.4434,28573.0,28572.0,0.00253723]
[1680328326992,0.1427,28573.0,28572.0,0.00253723]
[1680328327597,0.4434,28573.0,28572.0,0.00253723]
[1680328327898,0.4934,28573.0,28572.0,0.00253723]
[1680328329498,0.1927,28573.0,28572.0,0.00253723]
[1680328329695,0.4934,28573.0,28572.0,0.00253723]
[1680328330398,0.1927,28573.0,28572.0,0.00253723]
[1680328330599,0.4934,28573.0,28572.0,0.00253723]
[1680328332596,0.1927,28573.0,28572.0,0.00253723]
[1680328332797,0.4934,28573.0,28572.0,0.00253723]
[1680328342404,0.1927,28573.0,28572.0,0.00253723]
[1680328342609,0.4934,28573.0,28572.0,0.00253723]
[1680328344606,0.1927,28573.0,28572.0,0.00253723]
[1680328344906,0.4934,28573.0,28572.0,0.00253723]
[1680328345204,0.4434,28573.0,28572.0,0.00253723]
[1680328345603,0.1427,28573.0,28572.0,0.00253723]
[1680328345804,0.4434,28573.0,28572.0,0.00253723]
[1680328347203,0.3734,28573.0,28572.0,0.00253723]
[1680328354709,0.0727,28573.0,28572.0,0.00253723]
[1680328354912,0.3734,28573.0,28572.0,0.00253723]
[1680328356508,0.0727,28573.0,28572.0,0.00253723]
[1680328356703,0.3734,28573.0,28572.0,0.00253723]
[1680328357715,0.0727,28573.0,28572.0,0.00253723]
[1680328357915,0.3734,28573.0,28572.0,0.00253723]
[1680328359011,0.0727,28573.0,28572.0,0.00253723]
[1680328359211,0.3734,28573.0,28572.0,0.00253723]
[1680328360215,0.3734,28573.0,28572.0,0.04452313]
[1680328361819,0.0727,28573.0,28572.0,0.04452313]
[1680328362019,0.3734,28573.0,28572.0,0.04452313]
[1680328366023,0.0727,28573.0,28572.0,0.04452313]
[1680328366225,0.3734,28573.0,28572.0,0.04452313]
[1680328366924,0.4234,28573.0,28572.0,0.04442303]
[1680328369020,0.0727,28573.0,28572.0,0.04442303]
[1680328369431,0.0727,28573.0,28572.0,0.00243713]
[1680328369729,0.0727,28573.0,28572.0,0.05243713]
[1680328369930,0.0727,28573.0,28572.0,0.0944329]
[1680328370133,0.0727,28573.0,28572.0,0.05243713]
[1680328370730,0.0727,28573.0,28572.0,0.04443269]
[1680328371330,0.0727,28573.0,28572.0,0.09443269]
[1680328371924,0.0727,28573.0,28572.0,0.04443269]
[1680328372429,0.0727,28573.0,28572.0,0.09443269]
[1680328373129,0.0727,28573.0,28572.0,0.04443269]
[1680328373828,0.0727,28573.0,28572.0,0.09443269]
[1680328374230,0.0727,28573.0,28572.0,0.04443269]
[1680328391444,0.003,28573.0,28572.0,0.11443269]
[1680328397045,0.003,28573.0,28572.0,0.04443269]
[1680328397046,0.073,28573.0,28572.0,0.04443269]
[1680328405962,0.003,28573.0,28572.0,0.18491598]
[1680328406368,0.003,28573.0,28572.0,0.12193713]
[1680328409369,0.003,28573.0,28572.0,0.4855881]
[1680328409570,0.00289931,28573.0,28572.0,0.4855881]
[1680328409767,0.0028014,28573.0,28572.0,0.4855881]
[1680328410672,0.0028014,28573.0,28572.0,0.42263713]
[1680328412668,0.0028014,28573.0,28572.0,0.12193713]
[1680328412868,0.0028014,28573.0,28572.0,0.42263713]
[1680328413065,0.00269087,28573.0,28572.0,0.48556569]
[1680328413266,0.00259374,28573.0,28572.0,0.48556569]
[1680328413466,0.0024966,28573.0,28572.0,0.48556569]
[1680328413765,0.00241819,28573.0,28572.0,0.48556569]
[1680328413972,0.0023228,28573.0,28572.0,0.48556569]
[1680328414171,0.00222891,28573.0,28572.0,0.48556569]
[1680328414470,0.002135,28573.0,28572.0,0.48556569]
[1680328414671,0.00204219,28573.0,28572.0,0.48556569]
[1680328415068,0.00194458,28573.0,28572.0,0.48556569]
[1680328415374,0.00184558,28573.0,28572.0,0.48556569]
[1680328415571,0.00184558,28573.0,28572.0,0.48402846]
[1680328416875,0.00184558,28573.0,28572.0,0.18332846]
[1680328417067,0.00184558,28573.0,28572.0,0.48402846]
[1680328419674,0.0016168,28573.0,28572.0,0.48402846]
[1680328422580,0.0016168,28573.0,28572.0,0.18332846]
[1680328422774,0.0016168,28573.0,28572.0,0.48402846]
[1680328423978,0.0016168,28573.0,28572.0,0.18332846]
[1680328424170,0.0016168,28573.0,28572.0,0.43402846]
[1680328424480,0.0016168,28573.0,28572.0,0.18332846]
[1680328424779,0.0016168,28573.0,28572.0,0.43402846]
[1680328425079,0.0016168,28573.0,28572.0,0.48402846]
[1680328430479,0.0016168,28573.0,28572.0,0.43402846]
[1680328434582,0.0016168,28573.0,28572.0,0.48402846]
[1680328434973,0.0016168,28573.0,28572.0,0.18332846]
[1680328435181,0.0016168,28573.0,28572.0,0.48402846]
[1680328442485,0.00148262,28573.0,28572.0,0.48619267]
[1680328442681,0.00148262,28573.0,28572.0,0.18549267]
[1680328442876,0.00132193,28573.0,28572.0,0.48619267]
[1680328443077,0.00119361,28573.0,28572.0,0.48619267]
[1680328443274,0.00105886,28573.0,28572.0,0.48619267]
[1680328443478,0.00093095,28573.0,28572.0,0.48619267]
[1680328443778,0.00082118,28573.0,28572.0,0.48619267]
[1680328443980,0.00069249,28573.0,28572.0,0.48619267]
[1680328444286,0.00056377,28573.0,28572.0,0.48619267]
[1680328444585,0.00043758,28573.0,28572.0,0.48619267]
[1680328444883,0.00031034,28573.0,28572.0,0.48619267]
[1680328445085,0.00017508,28573.0,28572.0,0.48619267]
[1680328445288,4.046e-05,28573.0,28572.0,0.48619267]
[1680328445481,0.0699,28576.0,28573.0,0.05]
[1680328445686,0.0699,28576.0,28574.0,0.11165063]
[1680328445886,0.0699,28576.0,28575.0,0.05]
[1680328446790,0.0719,28576.0,28574.0,0.11565063]
[1680328446982,0.0719,28576.0,28574.0,0.04595063]
[1680328447189,0.072,28576.0,28575.0,0.0694]
[1680328448192,0.07,28576.0,28575.0,0.1194]
[1680328448393,0.072,28576.0,28575.0,0.0734]
[1680328450282,0.072,28576.0,28575.0,0.07536639]
[1680328451181,0.072,28576.0,28575.0,0.04791702]
[1680328457206,0.002,28576.0,28575.0,0.11791702]
[1680328470109,0.002,28576.0,28575.0,0.12556639]
[1680328470314,0.002,28576.0,28575.0,0.18849495]
[1680328470815,0.002,28576.0,28575.0,0.13849495]
[1680328471217,0.002,28576.0,28575.0,0.07556639]
[1680328471718,0.002,28576.0,28575.0,0.0479547]
[1680328471719,0.072,28576.0,28575.0,0.0479547]
[1680328490428,0.072,28576.0,28575.0,0.04784004]
[1680328507042,0.0719,28576.0,28575.0,0.11784004]
[1680328517056,0.072,28576.0,28575.0,0.04784004]
[1680328517855,0.072,28576.0,28575.0,0.09784004]
[1680328518851,0.072,28576.0,28575.0,0.04784004]
[1680328519461,0.072,28576.0,28575.0,0.05585173]
[1680328519654,0.072,28576.0,28575.0,0.11878029]
[1680328520963,0.072,28576.0,28575.0,0.05585173]
[1680328523661,0.072,28576.0,28575.0,0.11878029]
[1680328525159,0.072,28576.0,28575.0,0.05585173]
[1680328525365,0.072,28576.0,28575.0,0.11878029]
[1680328525567,0.072,28576.0,28575.0,0.05585173]
[1680328525766,0.072,28576.0,28575.0,0.11878029]
[1680328525957,0.072,28576.0,28575.0,0.05585173]
[1680328526366,0.072,28576.0,28575.0,0.06878029]
[1680328526560,0.072,28576.0,28575.0,0.05585173]
[1680328527067,0.002,28576.0,28575.0,0.12585173]
[1680328528467,0.002,28576.0,28575.0,0.42655173]
[1680328528968,0.002,28576.0,28575.0,0.12585173]
[1680328529466,0.002,28576.0,28575.0,0.42655173]
[1680328530166,0.002,28576.0,28575.0,0.12585173]
[1680328530367,0.002,28576.0,28575.0,0.42655173]
[1680328531667,0.002,28576.0,28575.0,0.41852095]
[1680328532060,0.002,28576.0,28575.0,0.37655173]
[1680328533262,0.002,28576.0,28575.0,0.07585173]
[1680328533468,0.002,28576.0,28575.0,0.37655173]
[1680328533857,0.002,28576.0,28575.0,0.4185199]
[1680328534268,0.002,28576.0,28575.0,0.37655173]
[1680328535869,0.002,28576.0,28575.0,0.4185192]
[1680328536070,0.002,28576.0,28575.0,0.37655173]
[1680328536272,0.002,28576.0,28575.0,0.41851849]
[1680328537370,0.002,28576.0,28575.0,0.1176259]
[1680328537872,0.002,28576.0,28575.0,0.11762887]
[1680328540070,0.002,28576.0,28575.0,0.07565914]
[1680328540873,0.002,28576.0,28575.0,0.41832787]
[1680328541572,0.002,28576.0,28575.0,0.11762787]
[1680328541971,0.002,28576.0,28575.0,0.07565914]
[1680328542166,0.002,28576.0,28575.0,0.11762744]
[1680328542973,0.002,28576.0,28575.0,0.07565914]
[1680328543372,0.002,28576.0,28575.0,0.37635914]
[1680328544672,0.002,28576.0,28575.0,0.07565914]
[1680328544874,0.002,28576.0,28575.0,0.37635914]
[1680328545267,0.002,28576.0,28575.0,0.41832708]
[1680328545872,0.002,28576.0,28575.0,0.4392877]
[1680328546771,0.002,28576.0,28575.0,0.37635914]
[1680328549475,0.002,28576.0,28575.0,0.37686987]
[1680328551973,0.002,28576.0,28575.0,0.43979843]
[1680328552169,0.002,28576.0,28575.0,0.37686987]
[1680328552375,0.002,28576.0,28575.0,0.41883671]
[1680328554578,0.002,28576.0,28575.0,0.11813671]
[1680328555680,0.002,28576.0,28575.0,0.07616987]
[1680328556683,0.002,28576.0,28575.0,0.11813913]
[1680328556877,0.002,28576.0,28575.0,0.11813864]
[1680328562686,0.002,28576.0,28575.0,0.07616987]
[1680328565781,0.002,28576.0,28575.0,0.11814314]
[1680328567087,0.002,28576.0,28575.0,0.11754314]
[1680328567785,0.002,28576.0,28575.0,0.07556987]
[1680328567989,0.002,28576.0,28575.0,0.11754319]
[1680328568581,0.002,28576.0,28575.0,0.07556987]
[1680328570383,0.002,28576.0,28575.0,0.11754252]
[1680328572088,0.002,28576.0,28575.0,0.07556987]
[1680328572388,0.002,28576.0,28575.0,0.1175425]
[1680328576987,0.002,28576.0,28575.0,0.0481425]
[1680328577187,0.002,28576.0,28575.0,0.1181425]
[1680328577892,0.002,28576.0,28575.0,0.07616987]
[1680328579992,0.002,28576.0,28575.0,0.11814878]
[1680328587201,0.072,28576.0,28575.0,0.11754878]
[1680328591608,0.072,28576.0,28575.0,0.11743671]
[1680328594904,0.072,28576.0,28575.0,0.0754578]
[1680328595098,0.072,28576.0,28575.0,0.11744813]
[1680328595301,0.3721,28576.0,28575.0,0.04804813]
[1680328597504,0.3721,28576.0,28575.0,0.0060578]
[1680328597906,0.3721,28576.0,28575.0,0.04804813]
[1680328601110,0.3721,28576.0,28575.0,0.0060578]
[1680328602513,0.4421,28576.0,28575.0,0.0060578]
[1680328604014,0.4421,28576.0,28575.0,0.04804813]
[1680328605013,0.1414,28576.0,28575.0,0.04804813]
[1680328606715,0.002,28576.0,28575.0,0.11804813]
[1680328607121,0.072,28576.0,28575.0,0.11804813]
[1680328617124,0.002,28576.0,28575.0,0.04804813]
[1680328617322,0.3507,28580.0,28575.0,0.13898636]
[1680328617323,0.3007,28580.0,28575.0,0.13898636]
[1680328617528,0.46841151,28583.0,28577.0,0.11148163]
[1680328617827,0.07,28579.0,28578.0,0.00249512]
[1680328618123,0.07,28579.0,28578.0,0.05249512]
[1680328618428,0.07,28579.0,28578.0,0.00249512]
[1680328618926,0.072,28579.0,28578.0,0.00249512]
[1680328627232,0.002,28579.0,28578.0,0.07209512]
[1680328629729,0.052,28579.0,28578.0,0.07209512]
[1680328634939,0.002,28579.0,28578.0,0.07209512]
[1680328637138,0.072,28579.0,28578.0,0.00249512]
[1680328637638,0.072,28579.0,28576.0,0.11198163]
[1680328637842,0.002,28579.0,28578.0,0.00250048]
[1680328638042,0.072,28579.0,28578.0,0.00250048]
[1680328641046,0.072,28579.0,28576.0,0.46268163]
[1680328641345,0.0694,28578.0,28576.0,0.46268163]
[1680328641549,0.0694,28578.0,28576.0,0.41268163]
[1680328642143,0.0694,28578.0,28577.0,0.05]
[1680328642839,0.0694,28578.0,28577.0,0.3507]
[1680328642840,0.0704,28578.0,28577.0,0.3507]
[1680328643343,0.0704,28578.0,28577.0,0.055]
[1680328643541,0.0704,28578.0,28577.0,0.3557]
[1680328644746,0.0704,28578.0,28577.0,0.39768163]
[1680328645539,0.0704,28578.0,28577.0,0.34768163]
[1680328646650,0.0704,28578.0,28577.0,0.005]
[1680328647255,0.001,28578.0,28577.0,0.0746]
[1680328647450,0.051,28578.0,28577.0,0.0746]
[1680328647849,0.001,28578.0,28577.0,0.0746]
[1680328648451,0.051,28578.0,28577.0,0.0746]
[1680328648650,0.001,28578.0,28577.0,0.0746]
[1680328648945,0.001,28578.0,28577.0,0.41728163]
[1680328649541,0.001,28578.0,28577.0,0.41978527]
[1680328651451,0.001,28578.0,28577.0,0.11908527]
[1680328651649,0.001,28578.0,28577.0,0.41978527]
[1680328654054,0.001,28578.0,28577.0,0.46978527]
[1680328654259,0.001,28578.0,28577.0,0.41978527]
[1680328657060,0.001,28578.0,28577.0,0.42018527]
[1680328662355,0.001,28578.0,28577.0,0.37820364]
[1680328663152,0.001,28578.0,28577.0,0.4411322]
[1680328666655,0.001,28578.0,28577.0,0.1404322]
[1680328666856,0.001,28578.0,28577.0,0.4411322]
[1680328667955,0.001,28578.0,28577.0,0.4911322]
[1680328669062,0.001,28578.0,28577.0,0.4411322]
[1680328669859,0.001,28578.0,28577.0,0.49095462]
[1680328672665,0.001,28578.0,28577.0,0.19025462]
[1680328672959,0.001,28578.0,28577.0,0.49095462]
[1680328673261,0.00080727,28578.0,28577.0,0.49095462]
[1680328675765,0.00080727,28578.0,28577.0,0.19025462]
[1680328675967,0.00080727,28578.0,28577.0,0.49095462]
[1680328676166,0.00064495,28578.0,28577.0,0.49095462]
[1680328683070,0.00046007,28578.0,28577.0,0.49095462]
[1680328683771,0.00030878,28578.0,28577.0,0.49095462]
[1680328684162,0.00012869,28578.0,28577.0,0.49095462]
[1680328684374,0.07012869,28578.0,28577.0,0.37095462]
[1680328684671,0.12012869,28578.0,28577.0,0.07025462]
[1680328684872,0.07012869,28578.0,28577.0,0.07025462]
[1680328687166,0.06952869,28578.0,28577.0,0.07025462]
[1680328688261,0.06952869,28578.0,28577.0,0.37095462]
[1680328691976,0.00012869,28578.0,28577.0,0.44045462]
[1680328692173,0.00012869,28578.0,28577.0,0.49045462]
[1680328696177,0.07,28580.0,28578.0,0.05]
[1680328696382,0.07,28580.0,28579.0,0.04198455]
[1680328697874,0.079,28580.0,28579.0,0.04298455]
[1680328700880,0.072,28580.0,28579.0,0.04198455]
[1680328703882,0.072,28580.0,28579.0,0.0448561]
[1680328709083,0.071,28580.0,28579.0,0.0498561]
[1680328731509,0.001,28580.0,28579.0,0.14080011]
[1680328732914,0.001,28580.0,28579.0,0.07787155]
[1680328734208,0.001,28580.0,28579.0,0.37857155]
[1680328736318,0.001,28580.0,28579.0,0.42054366]
[1680328736516,0.001,28580.0,28579.0,0.47054366]
[1680328737017,0.001,28580.0,28579.0,0.42857155]
[1680328738017,0.001,28580.0,28579.0,0.49150011]
[1680328738216,0.001,28580.0,28579.0,0.42054371]
[1680328738512,0.0709,28580.0,28579.0,0.35054371]
[1680328739711,0.0709,28580.0,28579.0,0.04984371]
[1680328740408,0.0709,28580.0,28579.0,0.35054371]
[1680328741814,0.0709,28580.0,28579.0,0.35054223]
[1680328742418,0.0709,28580.0,28579.0,0.04984223]
[1680328742617,0.0709,28580.0,28579.0,0.35054223]
[1680328746320,0.001,28580.0,28579.0,0.42054223]
[1680328748509,0.001,28580.0,28579.0,0.42043631]
[1680328751423,0.001,28580.0,28579.0,0.47043631]
[1680328753126,0.001,28580.0,28579.0,0.42043631]
[1680328754422,0.001,28580.0,28579.0,0.42846563]
[1680328755327,0.001,28580.0,28579.0,0.47042038]
[1680328757025,0.001,28580.0,28579.0,0.4704219]
[1680328757226,0.001,28580.0,28579.0,0.47042198]
[1680328759132,0.001,28580.0,28579.0,0.42846563]
[1680328767135,0.001,28580.0,28579.0,0.42918727]
[1680328768026,0.001,28580.0,28579.0,0.42113347]
[1680328768837,0.001,28580.0,28579.0,0.4211354]
[1680328769736,0.001,28580.0,28579.0,0.1204354]
[1680328770535,0.001,28580.0,28579.0,0.07848727]
[1680328770728,0.001,28580.0,28579.0,0.1204391]
[1680328770927,0.001,28580.0,28579.0,0.07848727]
[1680328773344,0.001,28580.0,28579.0,0.14141583]
[1680328773545,0.001,28580.0,28579.0,0.44211583]
[1680328773740,0.001,28580.0,28579.0,0.14141583]
[1680328774142,0.001,28580.0,28579.0,0.44211583]
[1680328775345,0.001,28580.0,28579.0,0.37918727]
[1680328775551,0.001,28580.0,28579.0,0.44211583]
[1680328783747,0.001,28580.0,28579.0,0.14141583]
[1680328783952,0.001,28580.0,28579.0,0.44211583]
[1680328785956,0.001,28580.0,28579.0,0.14141583]